[Event "FIDE WY-U16 Olympiad 2022"]
[Site "Nakhchivan"]
[Date "2022.10.02"]
[Round "1.11"]
[White "Huseynli, Ayan"]
[Black "Ahmad, Khagan"]
[Result "0-1"]
[ECO "D00"]
[WhiteElo "1572"]
[BlackElo "2196"]
[Annotator "TA"]
[PlyCount "86"]
[EventDate "2022.10.02"]
[EventType "team-tourn"]
[EventCountry "AZE"]
[SourceTitle "playchess.com"]
[Source "ChessBase"]
[SourceQuality "1"]
[WhiteTeam "Azerbaijan"]
[BlackTeam "Azerbaijan"]
[WhiteTeamCountry "AZE"]
[BlackTeamCountry "AZE"]
[TimeControl "40/5400+30:1800+30"]

{[%evp 9,86,46,44,47,47,38,43,29,31,31,46,0,0,2,7,-47,-42,-42,-41,-64,-64,-94,-45,-50,-10,-24,7,0,31,-18,-17,-15,-16,-27,-31,-54,-46,-81,-83,-91,-82,-118,-116,-114,-120,-188,-172,-201,-189,-191,-183,-194,-181,-176,-116,-151,-168,-240,-214,-470,-453,-414,-370,-415,-358,-350,-350,-981,-938,-2777,-2157,-7865,-8075,-29982,-12836,-29985,-29986,-29988,-29989]} 1. d4 {[%emt 0:00:01]} d5 {[%emt 0:00:22]} 2. e3 {[%emt 0:00:09]} Bf5 {[%emt 0:00:09]} 3. c4 {[%emt 0:00:17]} c6 {[%emt 0:00:37]} 4. Qb3 {[%emt 0:00:05]} Qb6 {[%emt 0:00:18]} 5. Qxb6 {[%emt 0:03:48]} axb6 {[%emt 0:00:06]} 6. cxd5 {[%emt 0:00:07] D10: Slav Defence: 3 cxd5 (without early Nf3) and 3 Nc3.} cxd5 {[%emt 0:00:07]} 7. Nc3 {[%emt 0:00:19]} e6 {[%emt 0:00:09]} 8. Bb5+ {[%emt 0:01:14] White is slightly better.} Nc6 {[%emt 0:00:32]} 9. Nf3 {[%emt 0:03:36]} Bb4 {[%emt 0:02:21] [#]} 10. Ne5 $146 {[%emt 0:02:24]} ({Predecessor:} 10. Bd2 Ra5 11. Be2 h6 12. Nb5 Nf6 13. O-O Ke7 14. Rfc1 Bxd2 15. Nxd2 Raa8 16. Rc3 {0-1 (43) Delitzsch,J-Zach,A Tirschenreuth 1982}) 10... Nge7 {[%emt 0:00:23]} 11. Bd2 {[%emt 0:01:57]} f6 {[%emt 0:00:41]} 12. Nxc6 {[%emt 0:10:13]} (12. Nf3 $11) 12... bxc6 $15 {[%emt 0:00:26]} 13. Be2 {[%emt 0:00:09]} Bd6 {[%emt 0:01:30]} 14. f4 {[%emt 0:01:41]} h5 {[%emt 0:00:49]} 15. h4 {[%emt 0:04:54]} b5 {[%emt 0:04:07] Black is more active.} (15... Bg4 $17 16. Kf2 Nf5) 16. a4 {[%emt 0:05:34]} b4 {[%emt 0:03:41]} 17. Nd1 {[%emt 0:00:31][%cal Bc3d1,Bd1f2,Bf2d3,Bd3b4][%mdl 32]} Ra5 {[%emt 0:01:18]} 18. Nf2 {[%emt 0:02:21]} Kf7 {[%emt 0:00:26]} 19. g3 {[%emt 0:09:26]} (19. Nd3 $14) 19... Bc2 $36 {[%emt 0:02:42][%cal Bf5c2,Bc2a4,Ba4b5][%mdl 2080] Black fights for an advantage.} 20. Nd3 {[%emt 0:03:34]} Rxa4 {[%emt 0:04:38]} 21. Rxa4 {[%emt 0:00:23]} Bxa4 {[%emt 0:00:04]} 22. Nxb4 {[%emt 0:05:41]} Bb5 {[%emt 0:08:09]} 23. Bd1 {[%emt 0:05:30]} c5 {[%emt 0:02:16]} 24. dxc5 Bxc5 {[%emt 0:00:16]} 25. Be2 {[%emt 0:08:39]} Bxe2 {[%emt 0:01:13]} 26. Kxe2 {[%emt 0:00:04]} Nf5 {[%emt 0:00:12]} 27. Kf3 {[%emt 0:01:26] [#]} (27. Rg1 $17 {might work better.}) 27... Nxe3 $1 $19 {[%emt 0:02:58][%mdl 512]} 28. Nd3 {[%emt 0:01:30]} (28. Bxe3 Bxb4) 28... Nc4 {[%emt 0:00:02]} 29. Nxc5 {[%emt 0:03:08] Hoping for Bc3.} Nxd2+ {[%emt 0:00:02][%mdl 4096] Endgame KRN-KRN} 30. Ke2 {[%emt 0:02:53] [#]} Nc4 {[%emt 0:01:42]} 31. b3 {[%emt 0:00:21]} Nb6 {[%emt 0:00:33]} (31... Nd6 $19 32. Ra1 Rb8) 32. Ra1 {[%emt 0:00:52] [#]} Ra8 $1 {[%emt 0:00:02] Against Ra7+} 33. Na4 {[%emt 0:02:07]} (33. Rc1 $142) 33... Kg6 {[%emt 0:02:10] aiming for ...Kf5.} 34. Kf3 $2 {[%emt 0:01:04]} (34. f5+ {is the only way for White.} exf5 35. Kd3) 34... Kf5 {[%emt 0:00:38]} 35. Ra2 {[%emt 0:00:29]} d4 {[%emt 0:01:15] Strongly threatening ...e5.} 36. Ra1 {[%emt 0:01:45]} e5 {[%emt 0:00:36]} 37. fxe5 {[%emt 0:00:29]} fxe5 {[%emt 0:00:03][%cal Bf6e5,Be5e4,Be4e3][%mdl 32] White must now prevent ...e4+.} 38. Ra2 $2 {[%emt 0:00:56]} (38. Ke2 Kg4 39. Kd3) 38... e4+ {[%emt 0:02:43]} 39. Kf2 {[%emt 0:00:31]} e3+ {[%emt 0:00:21]} 40. Kf3 {[%emt 0:00:23]} Ke5 {[%emt 0:00:07]} 41. Ra1 {[%emt 0:30:48]} Nxa4 {[%emt 0:30:08]} (41... Rf8+ $142 42. Kg2 Nxa4 43. Re1 Nc3 44. Ra1 d3 45. Ra5+ Kd4 46. Ra1 Rf2+ 47. Kh3 d2 48. g4 e2 49. Ra8 d1=Q 50. Rd8+ Nd5 51. Rxd5+ Kxd5 52. gxh5 Qh1+ 53. Kg4 Qg2#) 42. bxa4 {[%emt 0:00:14]} Rf8+ {[%emt 0:00:06]} 43. Ke2 {[%emt 0:01:08]} Ke4 {[%emt 0:00:07] Weighted Error Value: White=0.90/Black=0.23 (precise)} 0-1

[Event "FIDE WY-U16 Olympiad 2022"]
[Site "Nakhchivan"]
[Date "2022.10.02"]
[Round "1.12"]
[White "Shukurova, Aydan"]
[Black "Bashirli, Saadat"]
[Result "1/2-1/2"]
[ECO "D31"]
[WhiteElo "1732"]
[BlackElo "1567"]
[Annotator "NA RC COMBH"]
[PlyCount "80"]
[EventDate "2022.10.02"]
[EventType "team-tourn"]
[EventCountry "AZE"]
[SourceTitle "playchess.com"]
[Source "ChessBase"]
[SourceQuality "1"]
[WhiteTeam "Azerbaijan"]
[BlackTeam "Azerbaijan"]
[WhiteTeamCountry "AZE"]
[BlackTeamCountry "AZE"]
[TimeControl "40/5400+30:1800+30"]

1. d4 {[%emt 0:00:06]} d5 {[%emt 0:00:03]} 2. c4 {[%emt 0:00:30]} e6 {[%emt 0:00:07]} 3. Nc3 {[%emt 0:00:12]} c6 {[%emt 0:00:09]} 4. cxd5 {[%emt 0:00:44]} exd5 {[%emt 0:00:11]} 5. Nf3 {[%emt 0:00:20]} Bf5 {[%emt 0:00:44]} 6. Bf4 {[%emt 0:03:25]} Bd6 {[%emt 0:02:00]} 7. Bxd6 {[%emt 0:03:52]} Qxd6 {[%emt 0:00:02]} 8. Nh4 {[%emt 0:08:27]} Be6 {[%emt 0:11:06]} 9. e3 {[%emt 0:04:13]} Qd8 {[%emt 0:08:50]} 10. Nf3 {[%emt 0:01:41]} Bf5 {[%emt 0:01:32]} 11. Bd3 {[%emt 0:03:25]} Bxd3 {[%emt 0:00:51]} 12. Qxd3 {[%emt 0:00:04]} Nf6 {[%emt 0:01:40]} 13. O-O {[%emt 0:03:38]} O-O {[%emt 0:00:35]} 14. Ne5 {[%emt 0:03:21]} Nbd7 {[%emt 0:05:18]} 15. f4 {[%emt 0:02:37]} Qe7 {[%emt 0:03:56]} 16. Rf3 {[%emt 0:03:03]} Rae8 {[%emt 0:02:43]} 17. Rh3 {[%emt 0:03:47]} h6 {[%emt 0:01:17]} 18. Rf1 {[%emt 0:05:55]} Ne4 {[%emt 0:09:23]} 19. Nxe4 {[%emt 0:04:53]} dxe4 {[%emt 0:00:44]} 20. Qb3 {[%emt 0:00:17]} Nxe5 {[%emt 0:00:42]} 21. fxe5 {[%emt 0:00:32]} Kh7 {[%emt 0:01:53]} 22. Qd1 {[%emt 0:07:14]} f5 {[%emt 0:03:13]} 23. Qh5 {[%emt 0:11:19]} Qe6 {[%emt 0:04:43]} 24. Rg3 {[%emt 0:03:27]} g6 {[%emt 0:04:17]} 25. Qh4 {[%emt 0:01:32]} Qxa2 {[%emt 0:06:41]} 26. Rh3 {[%emt 0:01:26]} h5 {[%emt 0:00:22]} 27. Qg5 {[%emt 0:00:24]} Qe6 {[%emt 0:01:58]} 28. Rf4 {[%emt 0:01:36]} Qe7 {[%emt 0:01:28]} 29. Qg3 {[%emt 0:00:56]} Kh6 {[%emt 0:03:03]} 30. Rfh4 {[%emt 0:03:07]} Qg5 {[%emt 0:01:00]} 31. Qf2 {[%emt 0:00:19]} c5 {[%emt 0:03:41]} 32. Rg3 {[%emt 0:01:52]} Qe7 {[%emt 0:03:10]} 33. Rxh5+ {[%emt 0:03:35]} gxh5 {[%emt 0:03:39]} 34. Qf4+ {[%emt 0:00:05]} Kh7 {[%emt 0:00:19]} 35. Rg5 {[%emt 0:00:11]} Qf7 {[%emt 0:01:36]} 36. Qh4 {[%emt 0:00:27]} Kh6 {[%emt 0:01:03]} 37. Qf4 {[%emt 0:00:03]} Kh7 {[%emt 0:00:40]} 38. Qh4 {[%emt 0:00:22]} Kh6 {[%emt 0:01:14]} 39. Qf4 {[%emt 0:00:21]} Kh7 {[%emt 0:00:14]} 40. Qh4 {[%emt 0:00:06]} Kh6 {[%emt 0:01:04]} 1/2-1/2

[Event "FIDE WY-U16 Olympiad 2022"]
[Site "Nakhchivan"]
[Date "2022.10.02"]
[Round "1.12"]
[White "Castillo Beitia, Ashley Alexandra"]
[Black "Boramanikar Tanisha S"]
[Result "0-1"]
[ECO "E21"]
[WhiteElo "1674"]
[BlackElo "1740"]
[Annotator "NA RC COMBH"]
[PlyCount "80"]
[EventDate "2022.10.02"]
[EventType "team-tourn"]
[EventCountry "AZE"]
[SourceTitle "playchess.com"]
[Source "ChessBase"]
[SourceQuality "1"]
[WhiteTeam "Panama"]
[BlackTeam "India"]
[WhiteTeamCountry "PAN"]
[BlackTeamCountry "IND"]
[TimeControl "40/5400+30:1800+30"]

1. d4 {[%emt 0:00:04]} Nf6 {[%emt 0:00:14]} 2. c4 {[%emt 0:00:21]} e6 {[%emt 0:00:04]} 3. Nf3 {[%emt 0:00:08]} b6 {[%emt 0:00:14]} 4. Nc3 {[%emt 0:01:36]} Bb4 {[%emt 0:00:41]} 5. Bd2 {[%emt 0:01:26]} O-O {[%emt 0:01:11]} 6. e3 {[%emt 0:01:14]} Bb7 {[%emt 0:03:00]} 7. Bd3 {[%emt 0:02:32]} c5 {[%emt 0:06:31]} 8. O-O {[%emt 0:02:25]} d5 {[%emt 0:06:46]} 9. cxd5 {[%emt 0:08:28]} cxd4 {[%emt 0:02:20]} 10. Nxd4 {[%emt 0:03:23]} Nxd5 {[%emt 0:12:49]} 11. Qc2 {[%emt 0:14:02]} Bxc3 {[%emt 0:13:40]} 12. Bxh7+ {[%emt 0:13:49]} Kh8 {[%emt 0:00:06]} 13. Bxc3 {[%emt 0:00:48]} e5 {[%emt 0:08:50]} 14. Ne2 {[%emt 0:09:32]} Nxc3 {[%emt 0:09:16]} 15. Nxc3 {[%emt 0:01:26]} g6 {[%emt 0:01:02]} 16. Bxg6 {[%emt 0:00:30]} fxg6 {[%emt 0:00:47]} 17. Qxg6 {[%emt 0:00:08]} Qh4 {[%emt 0:01:43]} 18. e4 {[%emt 0:05:30]} Nc6 {[%emt 0:04:22]} 19. g3 {[%emt 0:05:47]} Qh3 {[%emt 0:01:48]} 20. Rad1 {[%emt 0:02:17]} Nd4 {[%emt 0:04:04]} 21. f4 {[%emt 0:01:48]} Ba6 {[%emt 0:00:49]} 22. Rf2 {[%emt 0:00:52]} Rad8 {[%emt 0:02:43]} 23. Kh1 {[%emt 0:05:33]} Bb7 {[%emt 0:10:30]} 24. Qg5 {[%emt 0:04:58]} Rde8 {[%emt 0:00:32]} 25. Rdf1 {[%emt 0:02:22]} Ba6 {[%emt 0:03:38]} 26. Rd1 {[%emt 0:01:17]} Bb7 {[%emt 0:03:51]} 27. b4 {[%emt 0:03:27]} Qh7 {[%emt 0:01:08]} 28. Re1 {[%emt 0:03:24]} exf4 {[%emt 0:01:10]} 29. Rxf4 {[%emt 0:00:18]} Nf3 {[%emt 0:00:14]} 30. Rxf3 {[%emt 0:03:46]} Rxf3 {[%emt 0:00:02]} 31. Nd5 {[%emt 0:01:10]} Rf2 {[%emt 0:00:51]} 32. h4 {[%emt 0:00:43]} Rf5 {[%emt 0:00:41]} 33. Qc1 {[%emt 0:00:55]} Bxd5 {[%emt 0:00:27]} 34. exd5 {[%emt 0:00:51]} Rxe1+ {[%emt 0:00:10]} 35. Qxe1 {[%emt 0:00:03]} Qd7 {[%emt 0:00:14]} 36. Qc3+ {[%emt 0:00:31]} Kg8 {[%emt 0:00:36]} 37. d6 {[%emt 0:00:19]} Qxd6 {[%emt 0:01:18]} 38. Qc8+ {[%emt 0:00:15]} Qf8 {[%emt 0:00:04]} 39. Qe6+ {[%emt 0:00:08]} Qf7 {[%emt 0:00:11]} 40. Qc8+ {[%emt 0:00:08]} Kh7 {[%emt 0:00:22]} 0-1

[Event "FIDE WY-U16 Olympiad 2022"]
[Site "Nakhchivan"]
[Date "2022.10.02"]
[Round "1.13"]
[White "Chen, Max"]
[Black "Samadov, Read"]
[Result "0-1"]
[ECO "B51"]
[WhiteElo "2104"]
[BlackElo "2455"]
[Annotator "TA"]
[PlyCount "62"]
[EventDate "2022.10.02"]
[EventType "team-tourn"]
[EventCountry "AZE"]
[SourceTitle "playchess.com"]
[Source "ChessBase"]
[SourceQuality "1"]
[WhiteTeam "Canada"]
[BlackTeam "Azerbaijan"]
[WhiteTeamCountry "CAN"]
[BlackTeamCountry "AZE"]
[TimeControl "40/5400+30:1800+30"]

{[%evp 15,62,4,10,13,16,0,9,0,0,0,25,10,0,-22,-22,-12,-20,-18,-20,-56,-46,-48,-60,-47,-46,-55,-46,-52,-44,-93,-82,-68,-83,-84,-93,-187,-187,-187,-187,-187,-187,-187,-187,-187,-187,-187,-187,-29998,-29999]} 1. e4 {[%emt 0:00:08]} c5 {[%emt 0:00:07]} 2. Nf3 {[%emt 0:00:21]} d6 {[%emt 0:00:22]} 3. Bb5+ {[%emt 0:00:28]} Nd7 {[%emt 0:00:48]} 4. O-O {[%emt 0:01:13]} a6 {[%emt 0:00:28]} 5. Bd3 {[%emt 0:01:08]} Ngf6 {[%emt 0:00:45]} 6. c3 {[%emt 0:02:02]} b5 {[%emt 0:05:12]} 7. Bc2 {[%emt 0:02:57]} Bb7 {[%emt 0:02:00]} 8. Qe2 {[%emt 0:01:29]} e6 {[%emt 0:06:17] 8...g6 is more advanced technology.} 9. d4 {[%emt 0:01:35] B51: Sicilian: Moscow Variation (3 Bb5+) without 3...Bd7.} Be7 {[%emt 0:03:29]} 10. Bg5 {[%emt 0:07:26]} h6 {[%emt 0:04:27]} 11. Bh4 {[%emt 0:05:47] The position is equal.} Rc8 {[%emt 0:06:26]} 12. a4 {[%emt 0:16:17] [#]} Qb6 $146 {[%emt 0:06:47]} ({Predecessor:} 12... g5 13. Bg3 h5 14. Nxg5 h4 15. Bf4 Nh5 16. Nh3 Nxf4 17. Nxf4 cxd4 18. cxd4 b4 {0-1 (40) Zajdela,K (1815)-Ghersinich,E (2193) Hum na Sutli 2019}) 13. Na3 {[%emt 0:08:43][%cal Ra4b5]} cxd4 {[%emt 0:16:05]} (13... g5 {seems wilder.} 14. Bg3 cxd4 15. cxd4 Rxc2 16. Nxc2 Nxe4 17. axb5 axb5 18. Nd2 Ndf6) 14. Bxf6 {[%emt 0:26:39]} Bxf6 {[%emt 0:10:38]} 15. cxd4 {[%emt 0:01:36][%cal Ra4b5]} O-O {[%emt 0:06:34]} 16. axb5 {[%emt 0:01:24]} axb5 {[%emt 0:00:18]} 17. Bd3 {[%emt 0:00:37]} Bxd4 {[%emt 0:01:52]} 18. Nxd4 {[%emt 0:02:04]} Qxd4 {[%emt 0:00:03]} 19. Nxb5 {[%emt 0:00:37]} Qb6 {[%emt 0:01:55]} 20. Nc3 {[%emt 0:03:41]} Ra8 {[%emt 0:03:09]} 21. Qc2 {[%emt 0:06:55]} Nc5 {[%emt 0:03:05]} 22. Bc4 {[%emt 0:04:14]} (22. Rxa8 $15 {deserves consideration.} Rxa8 23. Rb1) 22... Rfc8 {[%emt 0:02:15]} 23. Rxa8 {[%emt 0:01:04]} Bxa8 {[%emt 0:01:27]} 24. Qe2 {[%emt 0:02:55]} Qb4 {[%emt 0:04:09][%cal Oa8e4]} 25. f3 {[%emt 0:00:32] [#]} (25. Ba6 $17 Rb8 26. Bd3) 25... Nxe4 $1 $19 {[%emt 0:03:28][%mdl 512]} 26. Nxe4 {[%emt 0:00:21] And now Bd3 would win.} Rxc4 {[%emt 0:00:11]} 27. Nxd6 {[%emt 0:00:48]} Qc5+ {[%emt 0:02:32]} 28. Kh1 {[%emt 0:00:07]} Rc1 {[%emt 0:00:38]} 29. Rd1 {[%emt 0:01:17]} Bd5 {[%emt 0:01:25]} 30. Ne4 {[%emt 0:00:31]} Qb5 {[%emt 0:01:22]} 31. Qd2 {[%emt 0:00:28] [#]} (31. Qe1 $19 Rxd1 32. Qxd1) 31... Qf1+ $1 {[%emt 0:00:11] Weighted Error Value: White=0.35/Black=0.02 (flawless)} 0-1

[Event "FIDE WY-U16 Olympiad 2022"]
[Site "Nakhchivan"]
[Date "2022.10.02"]
[Round "1.13"]
[White "Galaviz Medina, Atlas Adomaitis"]
[Black "Arkadan, Adib"]
[Result "1-0"]
[ECO "A41"]
[WhiteElo "2069"]
[BlackElo "1884"]
[Annotator "TA"]
[PlyCount "75"]
[EventDate "2022.10.02"]
[EventType "team-tourn"]
[EventCountry "AZE"]
[SourceTitle "playchess.com"]
[Source "ChessBase"]
[SourceQuality "1"]
[WhiteTeam "Mexico"]
[BlackTeam "Lebanon"]
[WhiteTeamCountry "MEX"]
[BlackTeamCountry "LBN"]
[TimeControl "40/5400+30:1800+30"]

{[%evp 13,75,-21,-21,-27,-29,-43,-38,-36,-36,-38,-35,-29,-13,-18,0,-26,381,377,486,492,516,522,680,672,717,689,742,756,830,816,892,902,1001,1031,1011,1007,1094,1059,1512,1502,1453,1360,1305,1313,1327,1265,1461,1426,1354,1142,1416,1300,29995,29991,29995,29992,29992,5082,1854,1714,29992,29992,29992,29990]} 1. d4 {[%emt 0:00:04]} d6 {[%emt 0:00:20]} 2. c4 {[%emt 0:00:08]} e5 {[%emt 0:00:22]} 3. dxe5 {[%emt 0:01:13]} dxe5 {[%emt 0:00:15]} 4. Qxd8+ {[%emt 0:00:04]} Kxd8 {[%emt 0:00:07]} 5. Nf3 {[%emt 0:00:40]} f6 {[%emt 0:00:20]} 6. Nc3 {[%emt 0:00:27]} Be6 {[%emt 0:01:01]} 7. b3 {[%emt 0:04:49]} c6 {[%emt 0:00:23]} 8. Bb2 {[%emt 0:00:17] A41: 1 d4 d6: Tartakower System and Modern Defence.} Nd7 {[%emt 0:02:12]} 9. g3 {[%emt 0:03:14]} Nh6 {[%emt 0:07:30]} 10. Bg2 {[%emt 0:01:55] Black is slightly better.} Kc7 {[%emt 0:04:29]} 11. O-O {[%emt 0:05:51]} Nf7 {[%emt 0:01:43]} 12. Rfd1 {[%emt 0:01:52] [#]} Nd6 $146 {[%emt 0:05:41]} ({Predecessor:} 12... Nc5 13. b4 Na6 14. b5 Nc5 15. bxc6 bxc6 16. Nd2 Rb8 17. Rab1 Be7 18. Nce4 Nxe4 19. Bxe4 {0-1 (43) Charkhalashvili,I (2355)-Paehtz,E (2464) Riadh 2017}) 13. Rac1 {[%emt 0:04:49]} a5 {[%emt 0:02:45][%cal Oa5a4]} 14. Ba3 {[%emt 0:05:27][%cal Bb2a3,Ba3f8,Bf8d6][%mdl 32]} Ne4 $2 {[%emt 0:16:20][%mdl 8192] This costs Black the game.} 15. Bxf8 $18 {[%emt 0:00:23]} ({Stronger than} 15. Nxe4 Bxa3 16. Rb1 Nc5 $17) 15... Nxc3 {[%emt 0:18:02]} 16. Bd6+ {[%emt 0:00:07]} ({Worse is} 16. Rxc3 Rhxf8 17. Rc2 Nc5 $15) 16... Kc8 {[%emt 0:00:37]} 17. Rxc3 {[%emt 0:00:08]} c5 {[%emt 0:00:22]} 18. Nd2 {[%emt 0:00:17][%cal Bf3d2,Bd2e4,Be4d6,Bd6b5,Bb5a7][%mdl 32]} Ra6 {[%emt 0:23:34]} 19. Ne4 {[%emt 0:00:35]} Rc6 {[%emt 0:02:12]} 20. Be7 {[%emt 0:00:42]} Kc7 {[%emt 0:03:18]} 21. Nd6 {[%emt 0:02:40]} Rb6 {[%emt 0:00:35]} 22. Nb5+ {[%emt 0:00:13]} Kb8 {[%emt 0:01:46]} 23. Rcd3 {[%emt 0:01:54]} Kc8 {[%emt 0:04:03]} 24. Na7+ {[%emt 0:03:42]} Kc7 {[%emt 0:01:32]} 25. Bd6+ {[%emt 0:00:10]} Kd8 {[%emt 0:00:59]} 26. Bxc5 {[%emt 0:00:07]} Ra6 {[%emt 0:01:16]} 27. Bxb7 {[%emt 0:00:14]} Rxa7 {[%emt 0:00:33]} 28. Bxa7 {[%emt 0:00:08]} Kc7 {[%emt 0:00:06]} 29. Bd5 {[%emt 0:00:12]} Bf5 {[%emt 0:00:08]} 30. e4 {[%emt 0:00:06]} Bh3 {[%emt 0:00:49]} 31. f3 {[%emt 0:00:26]} h5 {[%emt 0:00:11]} 32. g4 {[%emt 0:00:45]} Nf8 {[%emt 0:00:39]} 33. c5 {[%emt 0:00:26]} hxg4 {[%emt 0:00:46]} 34. Bb6+ {[%emt 0:00:04]} Kc8 {[%emt 0:00:06]} 35. Ba8 {[%emt 0:00:07]} (35. Bc4 $142 Kb7 {[#]} 36. Rd7+ $1 {[%mdl 512]} Nxd7 37. Rxd7+ Kc8 38. c6 gxf3 39. Ba6+ Kb8 40. Rb7+ Kc8 41. Ra7+ Kb8 42. c7#) 35... Ne6 {[%emt 0:00:12]} 36. c6 {[%emt 0:00:06] [#] White threatens Rd5 and mate.} gxf3 {[%emt 0:01:11]} 37. Bb7+ {[%emt 0:00:13]} Kb8 {[%emt 0:00:11]} 38. Ba6 {[%emt 0:00:29] Weighted Error Value: White=0.05 (flawless) /Black=0.91} 1-0

[Event "FIDE WY-U16 Olympiad 2022"]
[Site "Nakhchivan"]
[Date "2022.10.02"]
[Round "1.14"]
[White "Talibov, Shiroghlan"]
[Black "Chen, Rachel Ruoxuan"]
[Result "1-0"]
[ECO "A17"]
[WhiteElo "2299"]
[BlackElo "1783"]
[Annotator "TA"]
[PlyCount "55"]
[EventDate "2022.10.02"]
[EventType "team-tourn"]
[EventCountry "AZE"]
[SourceTitle "playchess.com"]
[Source "ChessBase"]
[SourceQuality "1"]
[WhiteTeam "Azerbaijan"]
[BlackTeam "Canada"]
[WhiteTeamCountry "AZE"]
[BlackTeamCountry "CAN"]
[TimeControl "40/5400+30:1800+30"]

{[%evp 15,55,10,10,6,22,18,16,23,27,-14,0,-3,22,0,26,10,58,56,109,114,162,134,161,158,646,631,610,601,593,376,990,944,1046,1019,1050,1046,1144,1018,973,972,922,886]} 1. c4 {[%emt 0:00:07]} Nf6 {[%emt 0:00:09]} 2. Nc3 {[%emt 0:00:09]} e6 {[%emt 0:00:15]} 3. Nf3 {[%emt 0:00:12]} d5 {[%emt 0:01:15]} 4. d4 {[%emt 0:00:06]} dxc4 {[%emt 0:00:10]} 5. e4 {[%emt 0:00:49]} Bb4 {[%emt 0:00:22]} 6. Bg5 {[%emt 0:00:56]} h6 {[%emt 0:00:14]} 7. Bxf6 {[%emt 0:00:19]} Qxf6 {[%emt 0:00:06]} 8. Bxc4 {[%emt 0:07:28]} c5 {[%emt 0:01:48]} 9. O-O {[%emt 0:02:57] Nb5 is the strong threat. D39: Queen's Gambit Declined: Ragozin Defence with 5 Bg5 dxc4.} cxd4 {[%emt 0:21:00]} 10. Nb5 {[%emt 0:04:54]} Qe7 {[%emt 0:07:08] Against Nc7+} 11. Qxd4 {[%emt 0:09:10] The position is equal.} O-O {[%emt 0:01:13]} 12. e5 {[%emt 0:01:13]} Bd7 {[%emt 0:20:43]} 13. Qf4 {[%emt 0:14:36] [#] Hoping for Nc7.} ({Wrong is} 13. Nxa7 $2 Bc5 14. Qe4 Rxa7 $19) 13... Nc6 $146 {[%emt 0:16:48]} ({Predecessor:} 13... Bc6 14. Nbd4 Bc5 15. Rad1 Rd8 16. h4 Rd7 17. Bb3 Bxf3 18. Nxf3 Rxd1 19. Rxd1 Nc6 {0-1 (42) Grabliauskas,V (2332)-Ghaem Maghami,E (2568) Mashhad 2013}) 14. a3 {[%emt 0:04:02]} Bc5 {[%emt 0:01:36]} (14... a6 $5 {[%cal Ra6b5]} 15. Nd6 (15. axb4 axb5 16. Bxb5 Nxb4 $15) 15... Bxd6 16. exd6 Qf6 17. Qxf6 gxf6 $11) 15. b4 {[%emt 0:00:44]} Bb6 {[%emt 0:02:52]} (15... a6 $1 $11 {deserves consideration.} 16. Nc3 Ba7) 16. Nd6 $36 {[%emt 0:03:41][%mdl 2048] White is pushing.} Rab8 {[%emt 0:14:45]} (16... f6 $14 17. Nf5 (17. Nxb7 fxe5 18. Qg3 Rf5 $11) 17... Qf7) 17. Rad1 $16 {[%emt 0:01:00] White is much more active. The black rooks are badly placed.} Rfd8 {[%emt 0:01:26] [#]} (17... a6 $16) 18. g4 $1 $18 {[%emt 0:01:06][%cal Bg2g4,Bg4g5,Bg5h6][%mdl 32]} Bc7 {[%emt 0:03:43][%cal Oc6e5]} 19. g5 {[%emt 0:00:20]} Bxd6 $2 {[%emt 0:02:46] A mistake that costs the game.} (19... hxg5 $16 20. Nxg5 Nxe5 21. Qxe5 Be8) 20. exd6 {[%emt 0:00:35]} Qf8 {[%emt 0:00:12]} 21. gxh6 {[%emt 0:00:18]} g6 {[%emt 0:01:36]} 22. Rd3 {[%emt 0:01:44]} Be8 $2 {[%emt 0:00:43] [#]} (22... f6 23. Re3 Re8) 23. Bxe6 $1 {[%emt 0:00:42][%mdl 512] White is clearly winning.} Bd7 {[%emt 0:00:33]} (23... Rd7 24. Bxd7) 24. Bxd7 {[%emt 0:02:13]} Rxd7 {[%emt 0:00:05]} 25. b5 {[%emt 0:00:02]} Nd8 {[%emt 0:00:28]} 26. h7+ {[%emt 0:02:14]} Kxh7 {[%emt 0:01:03]} 27. Qf6 {[%emt 0:00:33]} Ne6 {[%emt 0:00:19]} 28. Ne5 {[%emt 0:00:05] Weighted Error Value: White=0.24 (precise) /Black=0.60} 1-0